Cogmind - Beta 17 @@@ ROGUE MODE // 2026.06.27 @ 21:16:20 Player: pinbox Result: Destroyed by B-75 Beast with Magnetic Acceleration Cannon Performance ------------- Evolutions (2) 1000 Regions Visited (6) 1200 Robots Destroyed (19) 95 Value Destroyed (710) 710 Prototype IDs (24) 480 Alien Tech Used (0) 0 Bonus (1270) 1270 TOTAL SCORE: 4755 Bonus ------- Pacifist 270 Entered Garrisons 200 Used RIF Installer 500 Aligned with FarCom 300 Cogmind --------- Core Integrity 0/550 Matter 279/300 Energy 100/100 System Corruption 3% Temperature Cool (12) Movement Core (50) Location -8/Garrison Parts ------- > --- POWER (1) -------- (None) > --- PROPULSION (3) --- (None) > --- UTILITY (5) ------ Machine Analyzer > --- WEAPON (2) ------- (None) > --- INVENTORY (5) ---- Improved Heat Sink Improved Heat Sink Relay Coupler [NC] (24) Sensor Drone Bay (20/20) Peak State ------------ > --- POWER ------------ Reinforced Ion Engine > --- PROPULSION ------- Improved Aluminum Leg Potential Leg Potential Leg > --- UTILITY ---------- Small Storage Unit Machine Analyzer Improved Terrain Scanner Recoil Stabilizer Skeleton Box > --- WEAPON ----------- Field Laser Light Cannon > --- INVENTORY -------- Light Deuterium Engine Improved Heat Sink Improved Heat Sink Relay Coupler [NC] Sensor Drone Bay Missile Launcher [Rating: 46] Favorites ----------- Power Deuterium Engine Engine Deuterium Engine Power Core Light Nuclear Core Propulsion Aluminum Leg Leg Aluminum Leg Utility Small Storage Unit Device Recoil Stabilizer Storage Small Storage Unit Processor Signal Interpreter Hackware System Shield Protection Light Armor Plating Weapon Field Laser Energy Gun Field Laser Ballistic Gun Light Assault Rifle Ballistic Cannon Light Cannon Launcher Missile Launcher Slashing Weapon Blade Saw Build | -11 -10 -10 -10 -9 -8 -8 ------- Run | Yrd Mat Min Exi Min Mat Gar Slots Evolved 4 | . . . . . 4 . Power . | . . . . . . . Propulsion 1 | . . . . . 1 . Utility 3 | . . . . . 3 . Weapon . | . . . . . . . Parts Attached 31 | 6 1 4 4 . 8 8 Power 5 | 1 . 1 . . 1 2 Engine 4 | 1 . 1 . . . 2 Core 1 | . . . . . 1 . Reactor . | . . . . . . . Propulsion 6 | 2 . . 2 . 1 1 Treads . | . . . . . . . Leg 6 | 2 . . 2 . 1 1 Wheel . | . . . . . . . Hover . | . . . . . . . Flight . | . . . . . . . Utility 14 | 1 1 2 2 . 4 4 Device 6 | . . 2 2 . 2 . Storage 1 | 1 . . . . . . Processor 2 | . . . . . 1 1 Hackware 4 | . . . . . 1 3 Protection 1 | . 1 . . . . . Artifact . | . . . . . . . Weapon 6 | 2 . 1 . . 2 1 Energy Gun 1 | . . 1 . . . . Energy Cannon . | . . . . . . . Ballistic Gun 2 | 2 . . . . . . Ballistic Cannon 1 | . . . . . 1 . Launcher 1 | . . . . . 1 . Special Weapon . | . . . . . . . Impact Weapon . | . . . . . . . Slashing Weapon 1 | . . . . . . 1 Piercing Weapon . | . . . . . . . Special Melee Weapon . | . . . . . . . Unidentified Prototypes 3 | . . 1 2 . . . Parts Lost 17 | . . . . . 3 14 Power 2 | . . . . . . 2 Propulsion 3 | . . . . . . 3 Utility 7 | . . . . . 2 5 Weapon 5 | . . . . . 1 4 Highest Loss Streak 7 | . . . . . 2 7 To Critical Strikes . | . . . . . . . Average Backups 6 | 1 3 6 7 8 5 6 Power . | . . . . . . . Propulsion 1 | . 2 1 1 1 1 . Utility 3 | . . 2 4 5 2 3 Weapon 1 | . 1 2 1 1 . . Tool/Special . | . . . . . . . Unused Backups 9 | . . 3 1 . 1 4 Power 1 | . . . . . 1 . Propulsion 3 | . . 2 . . . 1 Utility 3 | . . . . . . 3 Weapon 2 | . . 1 1 . . . Tool/Special . | . . . . . . . Average Slot Usage (%) 96 | . 96 100 99 100 92 87 Engine 10 | . 14 14 14 14 4 3 Core 1 | . . . . . 4 3 Leg 26 | . 28 28 28 28 22 25 Device 12 | . . 7 13 14 16 16 Storage 12 | . 14 14 14 14 9 8 Processor 3 | . . . . . 8 10 Hackware 2 | . . . . . 8 3 Protection 2 | . 10 6 . . . . Energy Gun 9 | . . 7 14 14 9 6 Ballistic Gun 12 | . 28 20 14 14 4 . Ballistic Cannon 1 | . . . . . 1 6 Peak Build Rating 46 | 6 7 19 38 38 45 46 Average Rating 25 | 4 6 10 25 38 42 38 On Entrance 20 | . 6 7 15 38 38 42 Avg Prop Armor Cover (%) . | . . . . . . . Naked Turns . | . . . . . . . Heaviest Build 27 | 11 14 21 26 26 27 25 Greatest Support 73 | 20 20 20 60 60 70 73 Greatest Overweight (x) 1 | . . 1 . . . . Average Overweight (x) . | . . . . . . . Largest Inventory Capacity 8 | 8 8 8 8 8 8 8 Average Capacity 7 | 7 8 8 8 8 8 7 Most Carried 8 | 3 4 8 8 8 8 8 Average Carried 6 | 1 3 6 7 8 5 6 Final Capacity 8 | 8 8 8 8 8 8 5 Final Carried 8 | 3 4 8 8 8 8 4 Class Distribution -------------------- 68% | Mutant 27% | Skirmisher 4% | Assassin Dominant Class ---------------- Mutant | -10/Materials Mutant | -10/Mines Mutant | -10/Exiles Mutant | -9/Mines Skirmisher | -8/Materials Skirmisher | -8/Garrison Resources | -11 -10 -10 -10 -9 -8 -8 ----------- Run | Yrd Mat Min Exi Min Mat Gar Matter Collected 624 | 227 . 47 7 50 171 122 Remotely . | . . . . . . . Salvage Created 497 | . . . . . 323 174 Parts 33 | . . . . . 19 14 Haulers Intercepted . | . . . . . . . Recyclers Shooed . | . . . . . . . Parts Field Recycled . | . . . . . . . Retrieved Matter . | . . . . . . . Parts Self-Destructed . | . . . . . . . Prevented . | . . . . . . . Parts Restored . | . . . . . . . Kills | -11 -10 -10 -10 -9 -8 -8 ------- Run | Yrd Mat Min Exi Min Mat Gar Combat Hostiles Destroyed 17 | . . . . . 8 9 Melee 1 | . . . . . . 1 Guns 9 | . . . . . 7 2 AOE 7 | . . . . . 1 6 Classes Destroyed 8 | . . . . . 5 3 Worker 1 | . . . . . 1 . Tunneler 1 | . . . . . 1 . Swarmer 6 | . . . . . 3 3 Cutter 2 | . . . . . . 2 Grunt 5 | . . . . . 3 2 Brawler 1 | . . . . . . 1 Duelist 1 | . . . . . . 1 Sentry 2 | . . . . . 2 . Best Kill Streak 7 | . . . . . 7 7 Combat Bots Only 7 | . . . . . 6 7 Max Kills in Single Turn 4 | . . . . . 2 4 Gunslinging . | . . . . . . . Exploded 4 | . . . . . 1 4 Melee 1 | . . . . . . 1 Uniques/NPCs Destroyed . | . . . . . . . Combat | -11 -10 -10 -10 -9 -8 -8 -------- Run | Yrd Mat Min Exi Min Mat Gar Hostile Shots Fired 270 | . 9 . 9 . 102 150 Missed 104 | . 6 . 4 . 36 58 Hits 166 | . 3 . 5 . 66 92 Melee 22 | . . . . . . 22 Projectile 144 | . 3 . 5 . 66 70 AOE 2 | . . . . . . 2 Critical Strikes 12 | . . . 1 . 2 9 Damage Taken 2621 | . 41 . 69 . 887 1624 Core 602 | . 11 . 13 . 126 452 Absorbed by Shields . | . . . . . . . Core Remaining (%) 95 | 100 . . . 90 . . Volleys Fired 46 | . 2 . 4 . 27 13 Largest 2 | . 2 . 2 . 2 2 Hottest 99 | . 40 . 83 . 99 93 Shots Fired 81 | . 4 . 5 . 48 24 Gun 66 | . 4 . 5 . 46 11 Cannon 12 | . . . . . 1 11 Launcher 3 | . . . . . 1 2 Special . | . . . . . . . Kinetic 39 | . 4 . 4 . 20 11 Thermal 39 | . . . 1 . 27 11 Explosive 3 | . . . . . 1 2 Electromagnetic . | . . . . . . . Robot Hit Streak 13 | . . . 1 . 13 9 Robot Miss Streak 5 | . . . 1 . 5 3 Penetration Max . | . . . . . . . Secondary Targets 2 | . . . . . 2 . Max Gunslinging Chain 1 | . . . . . 1 . Shots Hit Robots 46 | . . . 1 . 33 12 Core Hits 33 | . . . . . 18 15 Critical Kills . | . . . . . . . Critical Parts Destroyed . | . . . . . . . Critical Strikes 4 | . . . . . 1 3 Burn 2 | . . . . . 1 1 Blast 1 | . . . . . . 1 Sever 1 | . . . . . . 1 Melee Attacks 2 | . . . . . . 2 Impact . | . . . . . . . Slashing 2 | . . . . . . 2 Piercing . | . . . . . . . Sneak Attacks . | . . . . . . . Combat Hostiles . | . . . . . . . Follow-up Attacks . | . . . . . . . Damage Inflicted 1120 | . . 1 6 . 539 574 Guns 557 | . . . 6 . 446 105 Cannons 62 | . . . . . . 62 Explosions 475 | . . . . . 91 384 Melee 13 | . . . . . . 13 Ramming 13 | . . 1 . . 2 10 Kinetic 189 | . . . 6 . 121 62 Thermal 430 | . . . . . 325 105 Explosive 475 | . . . . . 91 384 Electromagnetic . | . . . . . . . Impact . | . . . . . . . Slashing 13 | . . . . . . 13 Piercing . | . . . . . . . Highest Corruption 3 | . . . . . . 3 Average Corruption 2 | . . . . . . 2 Corruption Purged . | . . . . . . . Corruption Blocked . | . . . . . . . Overload Shots . | . . . . . . . Overflow Damage 22 | . . . . . . 22 Projectiles . | . . . . . . . Explosions 22 | . . . . . . 22 Melee . | . . . . . . . Knockbacks 2 | . . . . . . 2 Impact . | . . . . . . . Kinetic 2 | . . . . . . 2 Secondary . | . . . . . . . Self-Inflicted Damage 91 | . . . . . 36 55 Shots 2 | . . . . . 1 1 Rammed 1 | . . . . . . 1 Targets Rammed 8 | . 1 1 . . 1 5 Kicked 7 | . 1 1 . . 1 4 Crushed . | . . . . . . . Highest Temperature 228 | . 6 . 44 . 228 77 Average Temperature 62 | . 4 . 14 . 80 36 Received Heat Transfer 690 | . 21 . 6 . 297 366 Effects 3 | . . . . . 3 . Interference 3 | . . . . . 3 . Siege Activations . | . . . . . . . Martial Activations . | . . . . . . . Shielding Activations . | . . . . . . . Robots Disrupted . | . . . . . . . Combat Hostiles . | . . . . . . . Robots Corrupted . | . . . . . . . Combat Hostiles . | . . . . . . . Parts Fried . | . . . . . . . Impact Corruptions . | . . . . . . . Robots Melted . | . . . . . . . Combat Hostiles . | . . . . . . . Parts Melted 1 | . . . . . 1 . Heat Transferred 1073 | . . . . . 777 296 Parts Sabotaged . | . . . . . . . Parts Stolen . | . . . . . . . Parts Stripped . | . . . . . . . Power Chain Reactions . | . . . . . . . Alert | -11 -10 -10 -10 -9 -8 -8 ------- Run | Yrd Mat Min Exi Min Mat Gar Maximum Alert Level 1 | . . . . . . 1 Low Security (%) 95 | 100 100 100 . 100 100 79 Level 1 4 | . . . . . . 20 Level 2 . | . . . . . . . Level 3 . | . . . . . . . Level 4 . | . . . . . . . Level 5 . | . . . . . . . High Security . | . . . . . . . Max Security . | . . . . . . . Peak Influence 283 | . . . . . 169 283 Initial 52 | . . . . . . 52 Average 45 | . . . . . 89 122 Influence Increases 556 | . . . 15 . 240 301 Destroy 0b10 Robot/C 340 | . . . . . 160 180 Destroy 0b10 Robot/NC 10 | . . . . . 10 . Destroy Leader 50 | . . . . . 40 10 Anti-Garrison Action 50 | . . . . . . 50 Destroy Structure 31 | . . . . . 15 16 Partial Spotted 15 | . . . . . . 15 Lose Combat Pursuer 60 | . . . 15 . 15 30 Influence Decreases 343 | . . . 8 7 160 168 Entered New Map 35 | . . . . 7 . 28 Time Decay 138 | . . . 8 . 130 . Lost Part 170 | . . . . . 30 140 Squads Dispatched 2 | . . 1 . . 1 . Investigation 1 | . . 1 . . . . Extermination . | . . . . . . . Reinforcement 1 | . . . . . 1 . Assault . | . . . . . . . Garrison . | . . . . . . . Intercept . | . . . . . . . Searches Triggered . | . . . . . . . Construction Impeded . | . . . . . . . Haulers Reinforced . | . . . . . . . Active Scanning Responses . | . . . . . . . Cargo Convoy Interrupts . | . . . . . . . Stealth | -11 -10 -10 -10 -9 -8 -8 --------- Run | Yrd Mat Min Exi Min Mat Gar Distress Signals . | . . . . . . . Communications Jammed . | . . . . . . . Distress Signals . | . . . . . . . Times Spotted 48 | . 3 . 7 . 13 25 Peak Tracking Total 12 | . 4 . 5 . 7 12 Tactical Retreats 3 | . . . 1 . 1 1 Traps | -11 -10 -10 -10 -9 -8 -8 ------- Run | Yrd Mat Min Exi Min Mat Gar Traps Triggered 1 | . . . . . 1 . Indirectly . | . . . . . . . Trap Hack Attempts . | . . . . . . . Triggered . | . . . . . . . Disarmed . | . . . . . . . Reprogrammed . | . . . . . . . Reused . | . . . . . . . Traps Extracted . | . . . . . . . Installed . | . . . . . . . Triggered . | . . . . . . . Machines | -11 -10 -10 -10 -9 -8 -8 ---------- Run | Yrd Mat Min Exi Min Mat Gar Machines Disabled 1 | . . . . . . 1 Max in Single Turn 1 | . . . . . . 1 Garrison Relay 1 | . . . . . . 1 Machines Repaired . | . . . . . . . Machines Dismantled . | . . . . . . . Machines Sabotaged . | . . . . . . . Overloaded Fab Kills . | . . . . . . . Hacking | -11 -10 -10 -10 -9 -8 -8 --------- Run | Yrd Mat Min Exi Min Mat Gar Machines Accessed 10 | . 1 2 5 . 2 . Terminals 1 | . . . . . 1 . Fabricators . | . . . . . . . Repair Stations . | . . . . . . . Recycling Units 1 | . 1 . . . . . Scanalyzers . | . . . . . . . Garrison Access 1 | . . . . . 1 . Total Hacks 57 | . 2 2 50 . 3 . Successful 56 | . 2 2 50 . 2 . Failed 1 | . . . . . 1 . Catastrophic 1 | . . . . . 1 . Database Lockouts . | . . . . . . . Manual 5 | . . . 3 . 2 . Terminals 2 | . . . . . 2 . Fabricators . | . . . . . . . Repair Stations . | . . . . . . . Recycling Units 2 | . 2 . . . . . Scanalyzers . | . . . . . . . Garrison Access 1 | . . . . . 1 . Terminal Hacks 52 | . . 2 50 . . . Record 49 | . . . 49 . . . Open Door 2 | . . 2 . . . . Proto ID Catalog 1 | . . . 1 . . . Fabricator Hacks . | . . . . . . . Repair Station Hacks . | . . . . . . . Recycling Unit Hacks 2 | . 2 . . . . . Report Inventory 1 | . 1 . . . . . Retrieve Components 1 | . 1 . . . . . Scanalyzer . | . . . . . . . Garrison Access Hacks 1 | . . . . . 1 . Unlock Access 1 | . . . . . 1 . Unauthorized Hacks 1 | . . . . . 1 . Terminals 1 | . . . . . 1 . Botnet 1 | . . . . . 1 . Fabricators . | . . . . . . . Repair Stations . | . . . . . . . Recycling Units . | . . . . . . . Scanalyzers . | . . . . . . . Garrison Access . | . . . . . . . Data Cores Recovered . | . . . . . . . Used . | . . . . . . . Hacking Detections 1 | . . . . . 1 . Full Trace Events . | . . . . . . . Feedback Events . | . . . . . . . Feedback Blocked . | . . . . . . . Robot Schematics Acquired . | . . . . . . . Robots Built . | . . . . . . . Authchips . | . . . . . . . Time . | . . . . . . . Total Robot Build Rating . | . . . . . . . Part Schematics Acquired . | . . . . . . . Parts Built . | . . . . . . . Authchips . | . . . . . . . Time . | . . . . . . . Total Part Build Rating . | . . . . . . . Part Studies Acquired . | . . . . . . . Parts Repaired . | . . . . . . . Time . | . . . . . . . Parts Recycled . | . . . . . . . Recycled Matter . | . . . . . . . Retrieved Matter . | . . . . . . . Retrieved Components 3 | . 3 . . . . . Parts Scanalyzed . | . . . . . . . Part Schematics Acquired . | . . . . . . . Parts Damaged . | . . . . . . . Bothacking | -11 -10 -10 -10 -9 -8 -8 ------------ Run | Yrd Mat Min Exi Min Mat Gar Used RIF Installer 1 | . . . . . . 1 Robots Hacked . | . . . . . . . Non-combat . | . . . . . . . Combat . | . . . . . . . Robot Hacks Applied . | . . . . . . . Relay Couplers Released 4 | . . . . . . 4 Machine Destruction 4 | . . . . . . 4 Attached 3 | . . . . . . 3 Fabnet Peak Effective % . | . . . . . . . Robots Rewired . | . . . . . . . Allies Hacked . | . . . . . . . Hacks Repelled . | . . . . . . . Allies | -11 -10 -10 -10 -9 -8 -8 -------- Run | Yrd Mat Min Exi Min Mat Gar Total Allies . | . . . . . . . Largest Group . | . . . . . . . Highest-Rated Group . | . . . . . . . Highest-Rated Ally . | . . . . . . . Total Orders . | . . . . . . . Ally Attacks . | . . . . . . . Total Damage . | . . . . . . . Kills . | . . . . . . . Allies Corrupted . | . . . . . . . Allies Melted . | . . . . . . . Intel | -11 -10 -10 -10 -9 -8 -8 ------- Run | Yrd Mat Min Exi Min Mat Gar Active Infowar (turns) 792 | . . . 78 82 303 329 Sensors 98 | . . . . . 98 . Terrain 510 | . . . . . 184 326 Machine Analysis 175 | . . . . . . 175 Cloaking 202 | . . . 78 82 42 . Robot Analysis Total . | . . . . . . . Derelict Logs Recovered 1 | . . 1 . . . . Drone Launches . | . . . . . . . Drone Recoveries . | . . . . . . . Exploration | -11 -10 -10 -10 -9 -8 -8 ------------- Run | Yrd Mat Min Exi Min Mat Gar Turns Passed 2029 | 72 73 615 465 121 354 329 Spaces Moved 1575 | 53 54 493 416 79 224 256 Core 5 | 4 . . . . . 1 Treads . | . . . . . . . Legs 1570 | 49 54 493 416 79 224 255 Wheels . | . . . . . . . Hover . | . . . . . . . Flight . | . . . . . . . Fastest Speed 45 | 50 120 120 90 90 45 50 Average Speed 106 | 114 120 120 103 90 89 98 Slowest Speed 190 | 120 120 190 120 90 100 105 Overloaded Moves 38 | . . . . . 31 7 Propulsion Burnouts . | . . . . . . . Robots Hopped . | . . . . . . . Potential Cave-ins . | . . . . . . . Cave-ins Triggered . | . . . . . . . Exploration Rate (%) 34 | 5 16 83 69 24 14 33 Regions Visited 6 Branch Regions 3 Pre-discovered Areas 2 | . . 1 1 . . . Known Exits Taken 1 | . . . . . 1 . Unknown Exits Taken 5 | 1 1 1 1 1 . . Scrap Searched 2 | . . 1 . 1 . . Spaces Dug . | . . . . . . . Terrain Destroyed 21 | . . . . . 15 6 Melee . | . . . . . . . Projectile . | . . . . . . . AOE 21 | . . . . . 15 6 Terrain Rammed . | . . . . . . . Walls Destroyed . | . . . . . . . Machines Disabled . | . . . . . . . Actions | -11 -10 -10 -10 -9 -8 -8 --------- Run | Yrd Mat Min Exi Min Mat Gar Total 1845 | 61 58 517 447 128 331 303 Wait 127 | . . 2 10 50 62 3 Move 1569 | 52 53 492 415 78 223 256 Hop . | . . . . . . . Pick Up 21 | 3 1 7 3 . 5 2 Fast Attach 29 | 6 1 4 5 . 4 9 Attach 9 | . . . . . 5 4 Detach 2 | . . 1 . . 1 . Swap 5 | . . 1 2 . 1 1 Drop 26 | . . 8 8 . 2 8 Fire 46 | . 2 . 4 . 27 13 Melee 2 | . . . . . . 2 Ram 1 | . . . . . . 1 Kick 7 | . 1 1 . . 1 4 Crush . | . . . . . . . Escape Stasis . | . . . . . . . Rewire 1 | . . 1 . . . . Trap . | . . . . . . . Miscellaneous . | . . . . . . . Route ------- -11/Scrapyard -10/Materials -10/Mines -10/Exiles (discovered 2 exits: [*Min x2]) -9/Mines -8/Materials -8/Garrison History --------- Turn | Location | Event 3 | -11/Scrapyard | Discovered new exit (range 16) 73 | -11/Scrapyard | Entered Materials 127 | -10/Materials | Discovered new exit (range 16) 146 | -10/Materials | Entered Mines 156 | -10/Mines | Met a Derelict bent on vengeance 311 | -10/Mines | Build established: Mutant 426 | -10/Mines | Met a Derelict shopkeep closing up shop 605 | -10/Mines | Found the Drone Emporium 613 | -10/Mines | Found Prototype Device 613 | -10/Mines | Identified Sensor Drone Bay 734 | -10/Mines | Learned location of Storage (-9) 756 | -10/Mines | Deemed a non-threat by the Exiles lab entrance 756 | -10/Mines | Discovered new exit (range 5) 761 | -10/Mines | Entered Exiles 779 | -10/Exiles | Discovered new exit (range 15) 793 | -10/Exiles | Met 8R-AWN 811 | -10/Exiles | Met EX-HEX 854 | -10/Exiles | Met EX-BIN 945 | -10/Exiles | Aligned with FarCom system 947 | -10/Exiles | Given EX-Vault access code 975 | -10/Exiles | Opened EX-Vault 980 | -10/Exiles | Found Prototype Device 980 | -10/Exiles | Identified Skeleton Box 985 | -10/Exiles | Found Prototype Device 985 | -10/Exiles | Identified Cloak of Protection 991 | -10/Exiles | Found Potential Leg 993 | -10/Exiles | Found Potential Leg 1029 | -10/Exiles | Exiles lab attacked by MAIN.C 1095 | -10/Exiles | Learned location of Zion (-6) 1216 | -10/Exiles | Discovered new exit (range 14) 1226 | -10/Exiles | Stole three prototypes: Potential Leg, Cloak of Protection, Skeleton Box 1226 | -10/Exiles | Entered Mines 1308 | -9/Mines | Discovered new exit (range 12) 1315 | -9/Mines | Found a hidden stash of uninstalled traps 1347 | -9/Mines | Entered Materials 1347 | -8/Materials | Evolved 4 slots: Propulsion x1, Utility x3 1698 | -8/Materials | Identified exit to Garrison 1701 | -8/Materials | Entered Garrison 1725 | -8/Garrison | Installed Relay Interface Framework 1797 | -8/Garrison | Triggered checkpoint 1809 | -8/Garrison | Build established: Skirmisher 1810 | -8/Garrison | Garrison Relay disabled 1925 | -8/Garrison | Triggered checkpoint 1941 | -8/Garrison | Triggered checkpoint 1964 | -8/Garrison | Core integrity fell below 50% 1971 | -8/Garrison | Spotted B-75 Beast 1989 | -8/Garrison | Destroyed 7 combat bots 2000 | -8/Garrison | Lost 5 parts (2u3w) 2007 | -8/Garrison | Triggered checkpoint 2025 | -8/Garrison | Core integrity fell below 20% 2030 | -8/Garrison | Destroyed by B-75 Beast with Magnetic Acceleration Cannon Last Messages --------------- 01969_ G-47 Trooper destroyed. 01970_ Acquired Blade Saw. [Achievement: Let Me Out Of Here] 01972_ Acquired Potential Leg. 02003_ G-47 Trooper springs to life. 02007_ Beams of light sweep through the air. An alarm sounds. 02017_ Potential Leg destroyed. 02018_ Critical hit (Burn: +37). 02020_ Imp. Aluminum Leg destroyed. 02024_ Lgt. Deuterium Engine destroyed. 02026_ B-75 Beast Med. Reflective Plating severed. 02027_ Potential Leg destroyed. 02027_ Knocked back. 02027_ Sml. Storage Unit destroyed. 02027_ Blade Saw destroyed. 02027_ Imp. Terrain Scanner destroyed. 02027_ System corrupted by crushing effect (+1). 02030_ Slammed into B-75 Beast. Map ----- +----------------------------------------------------+ | #####?? #????????????????????????????????????????? | | #? #????????????????????????????????????????? | | ## #####????????????????????????????????????? | | ????????????????????????????????????? | | ????????????????????????????????????? | | ??????????????????????????????????????? | | ## #???????????????????????????????????????? | | ## ###?????????????????????????????????????? | | #?????????????????????????????????????? | | #?????????????????????????????????????? | | #?????????????????????????????????????? | | %= #?????????????????????????????????????? | | ## ###?????????????????????????????????????? | | [ ############????????????????????????????? | | % #????????????????????????????? | | %* * #????????????????????????????? | | = = #????????????????????????????? | | #!+ ######## #????????####????????????????? | | ## ##??????# #????????# !#????????????????? | | ###### #???????# #????????# !?????????????????? | | ?????# #???????# #?#Y?????# !?????????????????? | | ?????# #???????# ###+#????# #??????####???????? | | ?????# #???????# ## ????# #?????""""#???????? | | ?????# #???????# ## ##### ###### ####?????? | | ?????# ???????+ YBBb% g #?????? | | ?????# ???????+ BB@ g #?????? | | ?????# #???????# ###+####################?????? | | ?????# #???????# #????????????????????????????? | | ?????# #???????# #??Y?????????????????????????? | | ?????? #???????# #??g?????????????????????????? | | ?????? ????????# #????????????????????????????? | | ?????? ????????# ?????g??????????????????????? | | ????????????????# g????????????????????????????? | | ????????????????# ##???????????????????????????? | | ????????????????# #???g????????????????????????? | | ????????????????# #????????????????????????????? | | ????????????????# #????????????????????????????? | | ????????????????# #????????????????????????????? | | ????????????????# #????????????????????????????? | | ????????????????# ?????????????????????????????? | | ????????????????? ?????????????????????????????? | | ?????????????????????????????????????????????????? | | ?????????????????????????????????????????????????? | | ?????????????????????????????????????????????????? | | ?????????????????????????????????????????????????? | | ?????????????????????????????????????????????????? | | ?????????????????????????????????????????????????? | | ?????????????????????????????????????????????????? | | ?????????????????????????????????????????????????? | | ?????????????????????????????????????????????????? | +----------------------------------------------------+ Best States ------------- Heat Dissipation 31 Energy Generation 14 Energy Capacity 275 Matter Stores 300 Matter Capacity 300 Sight Range 16 Robot Scan Range 14 Terrain Scan Range 16 Terrain Scan Density 10 Cloak Strength 5 Armor Coverage 150 Evasion (%) 57 Recoil Reduction 4 Defensive Hacking 10 Relay Coupler Types 1 Relay Coupler Value 18 Item Schematics ----------------- None Robot Schematics ------------------ None Fabricated ------------ Nothing Repaired ---------- Nothing Studied --------- None Alien Tech Used ----------------- None Achievements -------------- Join The Dark Side Let Me Out Of Here Sixth Sense Sprinter Challenges ------------ None Game ------ Seed LatentLaserStripper Manual? 0 Play Time 00:36:59 Cumulative 16.4 hours Start 2026.06.27 @ 20:01:26 End 2026.06.27 @ 21:16:20 Sessions 5 Manual Loads 0 Difficulty Rogue Special Mode None Game No. 15 Rogue 15 Adventurer 0 Explorer 0 Win Type - Total 1 Types 1/0/0/0/0/0/0/0/0/0 Lore% 9 Gallery% 20 Achievement% 17 Wizard Run 0 Options --------- Layout 1 ASCII 0 Keyboard 0 Movement Mouse Keybinds 1 Fullscreen 2 Font 24/Smallcaps Map View 50x40 Zoom Use 0% Tactical HUD 1 Map Filters NONE Filters NONE Steam 1 RUN: 6abdaab1-386e-49e6-bc6d-b55f71b6cae0